bitfinex/quotes_SOLUSD_20251030
["timestamp","ask_amount","ask_price","bid_price","bid_amount"]
[1761793330910,3.06398772,198.13,198.1,3.35172259]
[1761793331094,3.06398772,198.14,198.11,4.03172259]
[1761793331402,3.06398772,198.14,198.12,3.35080472]
[1761793331608,3.06398772,198.14,198.13,3.35080472]
[1761793333309,0.68,198.16,198.13,3.35080472]
[1761793333492,3.06398772,198.14,198.09,0.85]
[1761793333693,3.06398772,198.12,198.1,3.35038996]
[1761793334010,3.06398772,198.12,198.11,3.35038996]
[1761793335520,3.06398772,198.12,198.11,4.00038996]
[1761793335812,3.06398772,198.14,198.11,4.00038996]
[1761793336016,3.06398772,198.14,198.12,3.35038996]
[1761793336311,3.06398772,198.14,198.13,3.35038996]
[1761793340520,3.06398772,198.14,198.13,4.00038996]
[1761793340817,3.06398772,198.14,198.13,3.35038996]
[1761793341315,3.06398772,198.15,198.13,4.00038996]
[1761793341500,3.06398772,198.15,198.14,3.35038996]
[1761793342219,3.74398772,198.15,198.14,3.35038996]
[1761793342625,3.74398772,198.15,198.09,0.85]
[1761793342827,3.06398772,198.12,198.1,3.34856732]
[1761793343117,3.06398772,198.12,198.11,3.34856732]
[1761793344110,24.37598772,198.12,198.11,3.34856732]
[1761793344312,24.37598772,198.12,198.09,0.2]
[1761793344522,3.06398772,198.1,198.09,0.2]
[1761793344701,3.06398772,198.1,198.09,3.54922887]
[1761793345004,3.78398772,198.1,198.09,3.54922887]
[1761793355332,9.78882769,198.05,198.04,9.76366796]
[1761793355537,13.57281541,198.05,198.04,9.76366796]
[1761793355709,15.91680313,198.04,198.03,0.2]
[1761793355910,20.592,198.01,198.0,0.2]
[1761793356213,5.28470468,198.11,198.0,0.2]
[1761793356214,0.72,198.13,198.03,0.69]
[1761793356417,3.06398772,198.07,198.03,0.69]
[1761793356625,3.06398772,198.08,198.03,0.69]
[1761793356841,3.06398772,198.1,198.04,3.06398772]
[1761793357138,3.06398772,198.12,198.06,3.06398772]
[1761793357320,3.06398772,198.13,198.07,3.06398772]
[1761793357637,3.06398772,198.13,198.08,0.69]
[1761793358432,3.06398772,198.13,198.08,5.73830379]
[1761793358843,3.06398772,198.14,198.09,0.69]
[1761793359238,23.65598772,198.15,198.09,3.75398772]
[1761793359655,23.65598772,198.15,198.1,0.69]
[1761793359842,20.592,198.15,198.1,0.69]
[1761793360255,20.592,198.15,198.1,3.75398772]
[1761793360766,20.592,198.15,198.11,0.69]
[1761793362356,3.78398772,198.14,198.09,0.69]
[1761793362542,20.592,198.15,198.09,3.75398772]
[1761793362742,20.592,198.15,198.1,3.06398772]
[1761793363040,20.592,198.15,198.11,0.69]
[1761793365972,0.72,198.22,198.14,3.06398772]
[1761793366155,3.06398772,198.2,198.13,3.06398772]
[1761793366353,3.06398772,198.2,198.14,0.69]
[1761793366651,0.72,198.24,198.16,3.06398772]
[1761793366863,20.592,198.22,198.17,0.69]
[1761793367169,3.06398772,198.23,198.17,0.69]
[1761793367376,3.06398772,198.22,198.18,3.34489257]
[1761793367663,3.06398772,198.23,198.19,3.34489257]
[1761793367879,20.592,198.22,198.17,0.69]
[1761793368055,20.592,198.22,198.18,3.34494316]
[1761793368247,20.592,198.22,198.19,3.34494316]
[1761793368570,20.592,198.22,198.17,0.69]
[1761793368866,20.592,198.22,198.18,3.34366231]
[1761793369050,3.06398772,198.23,198.19,3.34366231]
[1761793369257,3.78398772,198.22,198.17,0.69]
[1761793369472,3.78398772,198.22,198.18,3.34269283]
[1761793369658,3.78398772,198.22,198.17,0.69]
[1761793369976,3.78398772,198.22,198.18,3.34297627]
[1761793370155,23.65598772,198.22,198.17,0.69]
[1761793370360,23.65598772,198.22,198.18,3.34293612]
[1761793370559,23.65598772,198.22,198.17,0.69]
[1761793370744,20.592,198.22,198.18,3.34235754]
[1761793371074,20.592,198.22,198.17,0.69]
[1761793371279,20.592,198.22,198.18,3.34235754]
[1761793371444,3.78398772,198.22,198.17,0.69]
[1761793371643,3.78398772,198.22,198.18,3.34164139]
[1761793371845,3.06398772,198.22,198.17,0.69]
[1761793372067,3.06398772,198.18,198.12,4.83385412]
[1761793372267,3.06398772,198.14,198.13,3.34220338]
[1761793372665,3.74398772,198.14,198.1,0.72]
[1761793372863,20.592,198.17,198.06,7.20784184]
[1761793372864,3.06398772,198.13,198.08,0.72]
[1761793373045,3.06398772,198.12,198.09,3.3452948]
[1761793373251,3.06398772,198.13,198.1,3.3452948]
[1761793373565,3.06398772,198.14,198.11,3.3452948]
[1761793373765,3.06398772,198.14,198.07,8.83265484]
[1761793373980,3.06398772,198.14,198.08,4.06539073]
[1761793374276,3.06398772,198.14,198.09,3.34539073]
[1761793374479,3.06398772,198.14,198.1,3.34539073]
[1761793374681,3.06398772,198.15,198.11,3.34539073]
[1761793374882,3.06398772,198.16,198.12,3.34539073]
[1761793375179,62.61211454,198.23,198.13,3.34459669]
[1761793375180,3.06398772,198.17,198.13,3.34459669]
[1761793375379,3.06398772,198.17,198.14,3.34459669]
[1761793375579,20.592,198.2,198.14,3.34459669]
[1761793375580,20.592,198.18,198.15,3.34459669]
[1761793375764,23.65598772,198.2,198.14,0.72]
[1761793375765,3.06398772,198.16,198.14,0.72]
[1761793376084,3.06398772,198.15,198.14,0.72]
[1761793376283,3.06398772,198.15,198.1,8.11173893]
[1761793376284,3.06398772,198.15,198.12,0.72]
[1761793376582,3.06398772,198.15,198.13,3.34375769]
[1761793376782,3.06398772,198.15,198.14,3.34375769]
[1761793377158,3.06398772,198.15,198.13,3.34375769]
[1761793377350,1.95991154,198.15,198.14,4.06375769]
[1761793380562,1.95991154,198.15,198.14,0.72]
[1761793380758,1.95991154,198.15,198.1,5.04783157]
[1761793380959,1.95991154,198.11,198.08,0.72]
[1761793381178,1.95991154,198.1,198.09,3.34574396]
[1761793382284,2.63991154,198.1,198.05,0.72]
[1761793382491,1.95991154,198.07,198.06,3.34699283]
[1761793385375,1.95991154,198.07,198.04,10.48366796]
[1761793385588,1.95991154,198.06,198.05,3.3468279]
[1761793386159,1.95991154,198.06,198.04,10.48366796]
[1761793386379,1.95991154,198.05,198.04,9.76366796]
[1761793386780,2.63991154,198.05,198.04,9.76366796]
[1761793387163,1.95991154,198.05,198.04,9.76366796]
[1761793387498,1.95991154,198.05,198.04,10.48366796]
[1761793387663,1.95991154,198.05,198.04,13.83033229]
[1761793388380,1.95991154,198.05,198.04,13.11033229]
[1761793388582,1.95991154,198.05,198.04,9.76366796]
[1761793390401,0.68,198.12,198.04,10.48366796]
[1761793390697,1.95991154,198.08,198.05,0.72]
[1761793391071,1.95991154,198.1,198.06,3.34424989]
[1761793391274,1.95991154,198.1,198.05,0.72]
[1761793391500,1.95991154,198.11,198.06,3.3440445]
[1761793391695,1.95991154,198.11,198.07,3.3440445]
[1761793391891,1.95991154,198.12,198.08,4.0640445]
[1761793392069,1.95991154,198.13,198.09,4.0640445]
[1761793392297,1.95991154,198.14,198.1,3.3440445]
[1761793392477,1.95991154,198.13,198.11,4.0140445]
[1761793392784,1.95991154,198.13,198.11,0.67]
[1761793393192,1.95991154,198.13,198.12,0.67]
[1761793393396,1.95991154,198.13,198.08,9.78882769]
[1761793393397,0.68,198.12,198.08,9.78882769]
[1761793393703,1.95991154,198.09,198.04,9.76366796]
[1761793393868,1.95991154,198.05,198.04,9.76366796]
[1761793394715,0.68,198.11,198.04,10.43366796]
[1761793394863,1.95991154,198.1,198.05,0.67]
[1761793395068,22.55191154,198.1,198.05,0.67]
[1761793395996,1.95991154,198.11,198.05,0.67]
[1761793396287,1.95991154,198.11,198.04,16.77296769]
[1761793396288,20.592,198.11,198.04,9.76366796]
[1761793396496,1.95991154,198.08,198.04,10.43366796]
[1761793397098,1.95991154,198.08,198.05,0.67]
[1761793398908,0.68,198.07,198.05,0.67]
[1761793399085,1.95991154,198.06,198.04,9.76366796]
[1761793399422,21.272,198.07,198.04,9.76366796]
[1761793399423,1.95991154,198.05,198.04,9.76366796]
[1761793399904,2.63991154,198.05,198.04,9.76366796]
[1761793400486,7.68914153,198.05,198.04,9.76366796]
[1761793401415,20.592,198.02,198.0,0.2]
[1761793401888,1.95991154,198.01,198.0,0.2]
[1761793402218,2.63991154,198.01,198.0,0.2]
[1761793402523,1.95991154,198.01,198.0,0.2]
[1761793402683,22.55191154,198.01,198.0,0.2]
[1761793403310,1.95991154,198.01,198.0,0.2]
[1761793403927,22.55191154,198.01,198.0,0.2]
[1761793405388,20.592,198.04,198.0,0.87]
[1761793405793,20.592,198.04,198.01,0.67]
[1761793406492,22.55191154,198.04,198.0,0.2]
[1761793406799,22.55191154,198.04,198.0,0.87]
[1761793406800,20.592,198.04,198.0,0.87]
[1761793407503,2.66991154,198.04,198.0,0.2]
[1761793408323,22.55191154,198.05,198.0,0.87]
[1761793408515,23.26191154,198.05,198.0,0.87]
[1761793408706,23.26191154,198.05,198.0,0.2]
[1761793408907,23.26191154,198.05,198.0,0.87]
[1761793410200,23.26191154,198.05,198.01,0.67]
[1761793410533,22.55191154,198.05,198.01,0.67]
[1761793412398,1.95991154,198.04,198.0,0.2]
[1761793412596,1.95991154,198.04,198.0,0.87]
[1761793412597,2.66991154,198.04,198.0,0.87]
[1761793413206,1.95991154,198.03,198.0,0.87]
[1761793413607,0.71,198.04,198.0,0.87]
[1761793413608,2.66991154,198.04,198.0,0.87]
[1761793414407,20.592,198.05,198.0,0.87]
[1761793414408,22.55191154,198.05,198.01,0.67]
[1761793414931,23.26191154,198.05,198.01,0.67]
[1761793416031,1.95991154,198.09,198.03,1.95991154]
[1761793416331,1.95991154,198.1,198.05,1.95991154]
[1761793416511,1.95991154,198.11,198.05,1.95991154]
[1761793416709,1.95991154,198.11,198.06,0.67]
[1761793416924,0.71,198.12,198.06,0.67]
[1761793417100,1.95991154,198.11,198.06,0.67]
[1761793417718,1.95991154,198.1,198.06,0.67]
[1761793418324,1.95991154,198.11,198.06,0.67]
[1761793419526,2.66991154,198.11,198.06,0.67]
[1761793419726,1.95991154,198.1,198.06,0.67]
[1761793420229,0.71,198.11,198.06,0.67]
[1761793420444,1.95991154,198.1,198.06,0.67]
[1761793421428,0.71,198.11,198.06,0.67]
[1761793421429,0.71,198.11,198.06,2.62991154]
[1761793421723,1.95991154,198.11,198.06,2.62991154]
[1761793421951,1.95991154,198.12,198.07,0.67]
[1761793422248,0.71,198.11,198.07,0.67]
[1761793422419,2.66991154,198.12,198.07,0.67]
[1761793423644,2.66991154,198.11,198.04,9.76366796]
[1761793423855,1.95991154,198.11,198.07,0.67]
[1761793425129,1.95991154,198.13,198.07,2.62991154]
[1761793425326,1.95991154,198.14,198.08,1.95991154]
[1761793425526,22.55191154,198.14,198.08,2.62991154]
[1761793425731,22.55191154,198.14,198.09,0.67]
[1761793425930,23.26191154,198.14,198.09,0.67]
[1761793426140,2.66991154,198.13,198.09,0.67]
[1761793426335,1.95991154,198.12,198.06,2.62991154]
[1761793426529,1.95991154,198.12,198.07,2.62991154]
[1761793427050,1.95991154,198.12,198.08,0.67]
[1761793428044,2.66991154,198.12,198.08,0.67]
[1761793429139,1.95991154,198.12,198.08,0.67]
[1761793429943,2.66991154,198.12,198.08,0.67]
[1761793430252,1.95991154,198.12,198.08,0.67]
[1761793430627,0.71,198.14,198.08,0.67]
[1761793430821,1.95991154,198.13,198.08,7.67837362]
[1761793431022,1.95991154,198.13,198.08,0.67]
[1761793431221,1.95991154,198.13,198.09,0.67]
[1761793433860,1.95991154,198.16,198.1,1.95991154]
[1761793434058,2.66991154,198.18,198.12,1.95991154]
[1761793434256,1.95991154,198.17,198.12,1.95991154]
[1761793434565,1.95991154,198.17,198.13,0.68]
[1761793435468,1.95991154,198.16,198.13,0.68]
[1761793435637,1.95991154,198.17,198.13,0.68]
[1761793436560,1.95991154,198.16,198.13,0.68]
[1761793436755,1.95991154,198.16,198.09,9.78882769]
[1761793436959,1.95991154,198.15,198.1,0.68]
[1761793437561,3.06264434,198.15,198.1,0.68]
[1761793437744,3.06264434,198.16,198.1,3.74264434]
[1761793438358,3.06264434,198.16,198.11,0.68]
[1761793439162,20.592,198.17,198.11,3.74264434]
[1761793439355,3.06264434,198.16,198.11,3.74264434]
[1761793439558,3.06264434,198.16,198.12,0.68]
[1761793439760,12.61074133,198.25,198.12,0.68]
[1761793439957,3.06264434,198.18,198.13,3.06264434]
[1761793440165,0.71,198.2,198.13,3.06264434]
[1761793440345,0.71,198.24,198.19,3.06264434]
[1761793440551,3.06264434,198.21,198.17,0.68]
[1761793441270,20.592,198.24,198.1,9.87174358]
[1761793441271,3.06264434,198.18,198.1,9.87174358]
[1761793441441,3.77264434,198.2,198.09,0.68]
[1761793441442,3.06264434,198.13,198.09,0.68]
[1761793441644,3.06264434,198.11,198.06,0.68]
[1761793441860,20.592,198.17,198.06,0.68]
[1761793441861,3.06264434,198.09,198.06,0.68]
[1761793442167,3.06264434,198.1,198.06,0.68]
[1761793442368,3.06264434,198.09,198.06,0.68]
[1761793443054,3.06264434,198.09,198.04,9.76366796]
[1761793443237,0.71,198.08,198.04,9.76366796]
[1761793443436,3.06264434,198.05,198.04,9.76366796]
[1761793443661,3.06264434,198.05,198.04,9.13366796]
[1761793443867,23.65464434,198.05,198.04,8.51366796]
[1761793444246,28.70387433,198.05,198.04,8.51366796]
[1761793445349,32.9523011,198.05,198.04,8.51366796]
[1761793446769,42.74112879,198.05,198.04,8.51366796]
[1761793448374,105.36420377,198.05,198.0,0.2]
[1761793448610,20.592,197.98,197.96,0.2]
[1761793448773,7.31107111,197.97,197.96,0.2]
[1761793448970,24.41096991,197.97,197.96,0.2]
[1761793449169,29.60440187,197.97,197.96,0.2]
[1761793449364,20.592,197.94,197.89,0.2]
[1761793449579,7.31107111,197.9,197.89,0.2]
[1761793450294,7.31107111,197.9,197.84,0.2]
[1761793450295,20.592,197.87,197.84,0.2]
[1761793450471,7.31107111,197.85,197.84,0.2]
[1761793453773,7.31107111,197.85,197.84,0.9]
[1761793453980,7.31107111,197.86,197.84,0.9]
[1761793454182,20.592,197.89,197.85,0.7]
[1761793454397,7.31107111,197.86,197.85,0.7]
[1761793454586,7.31107111,197.87,197.85,0.7]
[1761793456472,7.31107111,197.86,197.84,0.2]
[1761793456677,7.31107111,197.85,197.84,0.9]
[1761793456875,7.31107111,197.85,197.84,0.2]
[1761793458682,7.31107111,197.85,197.84,0.9]
[1761793458881,7.31107111,197.85,197.84,0.2]
[1761793462090,57.31107111,197.85,197.84,0.2]
[1761793462403,70.592,197.83,197.74,0.4]
[1761793462695,7.31107111,197.75,197.74,0.4]
[1761793463073,17.69106347,197.84,197.74,0.4]
[1761793463283,7.31107111,197.76,197.74,0.4]
[1761793463582,7.31107111,197.75,197.69,5.05841453]
[1761793463800,20.592,197.8,197.68,7.31107111]
[1761793463801,7.31107111,197.74,197.68,7.31107111]
[1761793464504,7.31107111,197.74,197.69,0.71]
[1761793464701,7.31107111,197.73,197.69,0.71]
[1761793466503,27.90307111,197.79,197.74,0.71]
[1761793467800,7.31107111,197.8,197.74,5.7670956]
[1761793468094,7.31107111,197.8,197.74,13.07816671]
[1761793468474,7.31107111,197.82,197.76,7.31107111]
[1761793468695,7.31107111,197.85,197.79,7.31107111]
[1761793469096,7.31107111,197.85,197.8,0.71]
[1761793469299,7.31107111,197.86,197.8,8.02107111]
[1761793469482,7.31107111,197.87,197.81,8.02107111]
[1761793469682,7.31107111,197.87,197.82,0.71]
[1761793470684,20.592,197.9,197.82,0.71]
[1761793470896,7.31107111,197.87,197.82,8.02107111]
[1761793471082,5.05200814,197.95,197.84,7.31107111]
[1761793471280,7.31107111,197.89,197.84,7.31107111]
[1761793471587,7.31107111,197.89,197.84,0.71]
[1761793471790,7.31107111,197.89,197.82,5.05509747]
[1761793471791,7.31107111,197.89,197.85,0.71]
[1761793472008,7.31107111,197.9,197.85,0.71]
[1761793472188,7.31107111,197.91,197.85,8.02107111]
[1761793472707,7.31107111,197.91,197.86,0.71]
[1761793472909,9.78882769,198.0,197.87,7.31107111]
[1761793473091,7.31107111,197.94,197.88,7.31107111]
[1761793473408,7.31107111,197.94,197.89,7.31107111]
[1761793473783,20.592,197.97,197.87,5.05382321]
[1761793473784,7.31107111,197.97,197.92,20.592]
[1761793474013,0.3,198.04,197.93,0.71]
[1761793474014,7.31107111,197.98,197.93,0.71]
[1761793474699,7.31107111,197.99,197.93,13.07327692]
[1761793474901,7.31107111,197.99,197.94,0.71]
[1761793475207,7.31107111,198.01,197.95,7.31107111]
[1761793475695,7.31107111,198.02,197.96,28.61307111]
[1761793476078,7.31107111,198.02,197.97,0.71]
[1761793476896,0.1,198.05,197.97,8.02107111]
[1761793477098,7.31107111,198.02,197.97,0.71]
[1761793477385,7.31107111,198.02,197.98,0.71]
[1761793479994,0.1,198.05,197.98,0.71]
[1761793480199,7.31107111,198.04,197.98,8.02107111]
[1761793480597,0.1,198.05,198.0,7.31107111]
[1761793480598,7.41107111,198.05,198.0,7.31107111]
[1761793480801,0.1,198.05,198.0,7.31107111]
[1761793481005,0.1,198.05,198.01,0.71]
[1761793482221,7.41107111,198.05,198.01,0.71]
[1761793482423,0.1,198.05,198.04,7.31107111]
[1761793482794,0.1,198.05,198.04,8.02107111]
[1761793483319,0.1,198.05,198.04,13.07055606]
[1761793484426,0.1,198.05,197.98,0.14216157]
[1761793484427,7.41107111,198.05,197.94,0.50520359]
[1761793484600,7.41107111,198.05,197.98,0.71]
[1761793484601,7.31107111,198.02,197.98,0.71]
[1761793485526,7.31107111,197.99,197.94,0.71]
[1761793485702,7.31107111,197.97,197.94,0.71]
[1761793485899,7.31107111,197.96,197.91,0.71]
[1761793486242,7.31107111,197.94,197.91,0.71]
[1761793487228,7.31107111,197.96,197.91,0.71]
[1761793488125,20.592,197.99,197.91,0.71]
[1761793488126,7.31107111,197.94,197.91,0.71]
[1761793488915,25.64284219,197.99,197.88,0.71]
[1761793488916,7.31107111,197.92,197.88,0.71]
[1761793489118,7.31107111,197.89,197.85,0.71]
[1761793489321,7.31107111,197.87,197.85,0.71]
[1761793489619,7.31107111,197.88,197.85,0.71]
[1761793489928,7.31107111,197.91,197.85,8.02107111]
[1761793490141,7.31107111,197.93,197.87,7.31107111]
[1761793490443,27.90307111,197.94,197.88,7.31107111]
[1761793490936,0.3,197.98,197.89,0.71]
[1761793490937,7.31107111,197.93,197.89,0.71]
[1761793491321,7.31107111,197.97,197.91,7.31107111]
[1761793491526,7.31107111,197.98,197.92,7.31107111]
[1761793491827,0.3,198.03,197.93,8.02107111]
[1761793491828,7.31107111,197.99,197.93,8.02107111]
[1761793492024,7.31107111,197.98,197.93,0.71]
[1761793492223,7.31107111,197.97,197.93,0.71]
[1761793492533,7.31107111,197.96,197.91,0.67]
[1761793492850,7.31107111,197.95,197.91,0.67]
[1761793493140,10.08882769,198.02,197.91,0.67]
[1761793493141,7.31107111,197.94,197.91,0.67]
[1761793493554,7.31107111,197.93,197.89,0.67]
[1761793495312,7.31107111,197.92,197.87,9.78882769]
[1761793495509,7.31107111,197.91,197.87,9.78882769]
[1761793495727,7.31107111,197.89,197.84,27.90307111]
[1761793495938,7.31107111,197.87,197.85,0.67]
[1761793497623,7.31107111,197.88,197.85,0.67]
[1761793498038,7.31107111,197.88,197.8,9.78882769]
[1761793498039,7.31107111,197.88,197.83,0.67]
[1761793498223,7.31107111,197.86,197.83,0.67]
[1761793498620,0.3,197.9,197.83,0.67]
[1761793498621,7.31107111,197.85,197.83,0.67]
[1761793499443,4.91514857,197.85,197.83,0.67]
[1761793499616,4.91514857,197.86,197.83,0.67]
[1761793501039,4.91514857,197.92,197.85,4.91514857]
[1761793501240,4.91514857,197.91,197.86,0.67]
[1761793501546,4.91514857,197.9,197.86,0.67]
[1761793501752,4.91514857,197.91,197.86,0.67]
[1761793502118,4.91514857,197.92,197.86,10.63920154]
[1761793502528,4.91514857,197.92,197.87,0.67]
[1761793502757,4.91514857,197.92,197.83,0.14216157]
[1761793502758,4.91514857,197.89,197.82,14.84373114]
[1761793502925,4.91514857,197.92,197.86,4.91514857]
[1761793503326,4.91514857,197.91,197.87,0.67]
[1761793503526,4.91514857,197.9,197.87,0.67]
[1761793503764,20.592,197.96,197.87,0.67]
[1761793503951,20.592,197.96,197.87,5.72377695]
[1761793503952,4.91514857,197.92,197.87,5.72377695]
[1761793504338,4.91514857,197.92,197.88,0.67]
[1761793506447,4.91514857,197.91,197.88,0.67]
[1761793507338,4.91514857,197.92,197.88,0.67]
[1761793508589,0.3,197.96,197.88,0.67]
[1761793508883,4.91514857,197.97,197.91,4.91514857]
[1761793509060,4.91514857,197.98,197.92,5.58514857]
[1761793509381,25.50714857,197.98,197.92,5.58514857]
[1761793509571,60.38882769,198.05,197.94,4.91514857]
[1761793509572,4.91514857,198.0,197.94,4.91514857]
[1761793509782,4.91514857,198.0,197.95,0.67]
[1761793510568,4.91514857,198.02,197.96,4.91514857]
[1761793510777,4.91514857,197.99,197.94,0.67]
[1761793510967,4.91514857,197.99,197.95,0.67]
[1761793511165,4.91514857,198.0,197.95,0.67]
[1761793511761,4.91514857,197.99,197.9,0.14216157]
[1761793511953,4.91514857,197.97,197.92,0.67]
[1761793512262,4.91514857,197.96,197.92,0.67]
[1761793512672,4.91514857,197.97,197.92,0.67]
[1761793514787,4.91514857,197.98,197.92,10.63768418]
[1761793514994,4.91514857,197.98,197.93,5.59514857]
[1761793515155,4.91514857,197.98,197.93,0.68]
[1761793515359,4.91514857,197.98,197.92,5.05253561]
[1761793515360,4.91514857,197.98,197.94,0.68]
[1761793516987,4.91514857,197.97,197.94,0.68]
[1761793517189,4.91514857,197.95,197.89,9.78882769]
[1761793517505,4.91514857,197.91,197.87,0.68]
[1761793518269,4.91514857,197.9,197.85,0.68]
[1761793518469,4.91514857,197.88,197.85,0.68]
[1761793520373,0.3,197.92,197.85,0.68]
[1761793520571,4.91514857,197.88,197.85,0.68]
[1761793520779,4.91514857,197.91,197.85,5.59514857]
[1761793520975,4.91514857,197.93,197.87,4.91514857]
[1761793521192,4.91514857,197.93,197.88,5.59514857]
[1761793521605,4.91514857,197.94,197.89,0.68]
[1761793521781,4.91514857,197.96,197.9,4.91514857]
[1761793522175,4.91514857,197.95,197.91,0.68]
[1761793523883,25.50714857,197.96,197.91,0.68]
[1761793524987,4.91514857,197.95,197.88,0.7]
[1761793525204,4.91514857,197.95,197.88,5.61514857]
[1761793525385,4.91514857,197.93,197.88,0.7]
[1761793525585,4.91514857,197.92,197.88,0.7]
[1761793525999,4.91514857,197.93,197.88,0.7]
[1761793526604,4.91514857,197.9,197.85,0.7]
[1761793526977,4.91514857,197.91,197.86,0.7]
[1761793527379,4.91514857,197.93,197.87,4.91514857]
[1761793527583,4.91514857,197.95,197.88,5.61514857]
[1761793527879,25.50714857,197.96,197.9,4.91514857]
[1761793528407,25.50714857,197.96,197.91,0.7]
[1761793528579,4.91514857,197.93,197.87,0.7]
[1761793528784,4.91514857,197.89,197.83,0.7]
[1761793529102,4.91514857,197.89,197.84,0.7]
[1761793529523,4.91514857,197.88,197.84,0.7]
[1761793530506,4.91514857,197.87,197.84,0.7]
[1761793531398,4.91514857,197.86,197.81,30.38082769]
[1761793531589,4.91514857,197.86,197.81,0.7]
[1761793531784,4.91514857,197.86,197.82,0.7]
[1761793533697,4.91514857,197.87,197.82,0.7]
[1761793536292,0.3,197.86,197.82,0.7]
[1761793536503,0.3,197.86,197.78,10.48882769]
[1761793536701,4.91514857,197.83,197.77,9.10001382]
[1761793536911,4.91514857,197.83,197.79,0.7]
[1761793537409,4.91514857,197.81,197.76,4.18486525]
[1761793537603,4.91514857,197.81,197.75,14.70397626]
[1761793537604,4.91514857,197.81,197.77,0.7]
[1761793537801,4.91514857,197.83,197.77,5.61514857]
[1761793538334,4.91514857,197.83,197.78,0.7]
[1761793539235,4.91514857,197.82,197.78,0.7]
[1761793540032,4.91514857,197.8,197.75,4.18486525]
[1761793540198,4.91514857,197.8,197.76,0.7]
[1761793540516,20.592,197.83,197.76,0.7]
[1761793540716,20.592,197.83,197.74,0.7]
[1761793540717,0.3,197.82,197.74,0.7]
[1761793541033,20.592,197.79,197.75,0.7]
[1761793541216,5.05434325,197.85,197.75,0.7]
[1761793541217,25.50714857,197.82,197.75,0.7]
[1761793541399,25.50714857,197.82,197.77,4.91514857]
[1761793541400,20.592,197.82,197.77,4.91514857]
[1761793541915,20.592,197.82,197.78,4.07266697]
[1761793542112,20.592,197.82,197.78,0.7]
[1761793542316,20.592,197.82,197.79,0.7]
[1761793542918,25.50714857,197.82,197.76,4.91514857]
[1761793543127,25.50714857,197.82,197.77,3.36978676]
[1761793543309,25.50714857,197.82,197.77,0.7]
[1761793543522,25.50714857,197.82,197.78,0.7]
[1761793543719,5.35410881,197.86,197.78,5.61514857]
[1761793543720,4.91514857,197.84,197.78,5.61514857]
[1761793543920,4.91514857,197.85,197.79,8.98318495]
[1761793544104,4.91514857,197.85,197.8,3.36803638]
[1761793544305,4.91514857,197.85,197.8,0.7]
[1761793544505,4.91514857,197.85,197.81,0.7]
[1761793544919,25.50714857,197.86,197.81,0.7]
[1761793545126,20.592,197.86,197.81,0.7]
[1761793545315,25.50714857,197.86,197.81,0.7]
[1761793546905,25.50714857,197.85,197.79,4.91514857]
[1761793547239,5.05386659,197.87,197.78,5.05608422]
[1761793547240,25.50714857,197.84,197.8,3.36392003]
[1761793547440,25.50714857,197.84,197.8,0.7]
[1761793547652,25.50714857,197.85,197.81,0.7]
[1761793547942,20.592,197.85,197.81,0.7]
[1761793548231,4.91514857,197.85,197.79,15.40397626]
[1761793548409,25.50714857,197.85,197.8,3.36314479]
[1761793548609,4.91514857,197.84,197.79,0.7]
[1761793548939,4.91514857,197.84,197.8,4.06318188]
[1761793549121,4.91514857,197.84,197.8,0.7]
[1761793549321,4.91514857,197.84,197.81,0.7]
[1761793549820,25.50714857,197.85,197.81,0.7]
[1761793552136,4.91514857,197.84,197.81,0.7]
[1761793553030,20.592,197.85,197.81,0.7]
[1761793553236,20.592,197.85,197.76,0.68]
[1761793553237,4.91514857,197.82,197.76,0.68]
[1761793553438,0.3,197.84,197.76,0.68]
[1761793553439,4.91514857,197.8,197.76,0.68]
[1761793554345,4.91514857,197.79,197.76,0.68]
[1761793555232,4.91514857,197.8,197.76,0.68]
[1761793556153,4.91514857,197.79,197.76,0.68]
[1761793557344,5.3545955,197.84,197.76,0.68]
[1761793557655,20.592,197.85,197.77,8.28043541]